{"text_format":"3","workbook":"xlsx","n_sheets":5,"sheets":["Artikelverkaufsbericht","Historische Daten","Preisliste","Pivot Preispunkt","Wiederhergestellt_Tabelle1"],"not_rendered":{"charts":2,"defined_names":6,"pivot_tables":2},"read":"whole","date_system":"1900"}

{"sheet":"Artikelverkaufsbericht","index":0,"n_rows":20,"n_cols":2,"rows_kept":20}
[null,"Artikelverkaufsbericht"]
{"$rows_empty":18}
[null," Artikel"]

{"sheet":"Historische Daten","index":1,"n_rows":33,"n_cols":10,"rows_kept":33}
[null,"Historische Artikelpreisliste und Verkäufe"]
[]
[null,"Produkt-ID","Produktname","Preisdatum","Verkaufspreis pro Einheit","Mengenpreis pro Einheit*","Verkaufte Einheiten (einzeln)","Verkaufte Einheiten (Mengen)","Gesamtverkäufe (#)","Gesamtverkäufe (€)"]
[null,5,{"$f":"IFERROR(IF('Historische Daten'!$B4<>\"\",VLOOKUP('Historische Daten'!$B$4:$B$33,tblProdukte[[Produkt-ID]:[Name]],2,FALSE),\"\"),\"Unbekannte Produkt-ID\")","v":"Shorts"},"2012-01-01",20,{"v":20,"d":"20 €"},629,{"v":1254,"d":"1,254"},{"$f":"'Historische Daten'!$G4+'Historische Daten'!$H4","v":{"v":1883,"d":"1,883"}},{"$f":"'Historische Daten'!$G4*'Historische Daten'!$E4+'Historische Daten'!$H4*'Historische Daten'!$F4","v":{"v":37660,"d":"37,660 €"}}]
[null,1,{"$f":"IFERROR(IF('Historische Daten'!$B5<>\"\",VLOOKUP('Historische Daten'!$B$4:$B$33,tblProdukte[[Produkt-ID]:[Name]],2,FALSE),\"\"),\"Unbekannte Produkt-ID\")","v":"Hemden"},"2012-01-01",88,{"v":54,"d":"54 €"},734,{"v":1427,"d":"1,427"},{"$f":"'Historische Daten'!$G5+'Historische Daten'!$H5","v":{"v":2161,"d":"2,161"}},{"$f":"'Historische Daten'!$G5*'Historische Daten'!$E5+'Historische Daten'!$H5*'Historische Daten'!$F5","v":{"v":141650,"d":"141,650 €"}}]
[null,2,{"$f":"IFERROR(IF('Historische Daten'!$B6<>\"\",VLOOKUP('Historische Daten'!$B$4:$B$33,tblProdukte[[Produkt-ID]:[Name]],2,FALSE),\"\"),\"Unbekannte Produkt-ID\")","v":"Sandalen"},"2012-01-01",70,{"v":44,"d":"44 €"},744,{"v":1043,"d":"1,043"},{"$f":"'Historische Daten'!$G6+'Historische Daten'!$H6","v":{"v":1787,"d":"1,787"}},{"$f":"'Historische Daten'!$G6*'Historische Daten'!$E6+'Historische Daten'!$H6*'Historische Daten'!$F6","v":{"v":97972,"d":"97,972 €"}}]
[null,3,{"$f":"IFERROR(IF('Historische Daten'!$B7<>\"\",VLOOKUP('Historische Daten'!$B$4:$B$33,tblProdukte[[Produkt-ID]:[Name]],2,FALSE),\"\"),\"Unbekannte Produkt-ID\")","v":"Schirme"},"2012-01-01",63,{"v":44,"d":"44 €"},681,{"v":1523,"d":"1,523"},{"$f":"'Historische Daten'!$G7+'Historische Daten'!$H7","v":{"v":2204,"d":"2,204"}},{"$f":"'Historische Daten'!$G7*'Historische Daten'!$E7+'Historische Daten'!$H7*'Historische Daten'!$F7","v":{"v":109915,"d":"109,915 €"}}]
[null,4,{"$f":"IFERROR(IF('Historische Daten'!$B8<>\"\",VLOOKUP('Historische Daten'!$B$4:$B$33,tblProdukte[[Produkt-ID]:[Name]],2,FALSE),\"\"),\"Unbekannte Produkt-ID\")","v":"Trinkflaschen"},"2012-01-01",35,{"v":27,"d":"27 €"},602,{"v":1822,"d":"1,822"},{"$f":"'Historische Daten'!$G8+'Historische Daten'!$H8","v":{"v":2424,"d":"2,424"}},{"$f":"'Historische Daten'!$G8*'Historische Daten'!$E8+'Historische Daten'!$H8*'Historische Daten'!$F8","v":{"v":70264,"d":"70,264 €"}}]
[null,1,{"$f":"IFERROR(IF('Historische Daten'!$B9<>\"\",VLOOKUP('Historische Daten'!$B$4:$B$33,tblProdukte[[Produkt-ID]:[Name]],2,FALSE),\"\"),\"Unbekannte Produkt-ID\")","v":"Hemden"},"2012-02-01",55,{"v":44,"d":"44 €"},678,{"v":1515,"d":"1,515"},{"$f":"'Historische Daten'!$G9+'Historische Daten'!$H9","v":{"v":2193,"d":"2,193"}},{"$f":"'Historische Daten'!$G9*'Historische Daten'!$E9+'Historische Daten'!$H9*'Historische Daten'!$F9","v":{"v":103950,"d":"103,950 €"}}]
[null,2,{"$f":"IFERROR(IF('Historische Daten'!$B10<>\"\",VLOOKUP('Historische Daten'!$B$4:$B$33,tblProdukte[[Produkt-ID]:[Name]],2,FALSE),\"\"),\"Unbekannte Produkt-ID\")","v":"Sandalen"},"2012-02-01",83,{"v":54,"d":"54 €"},753,{"v":1005,"d":"1,005"},{"$f":"'Historische Daten'!$G10+'Historische Daten'!$H10","v":{"v":1758,"d":"1,758"}},{"$f":"'Historische Daten'!$G10*'Historische Daten'!$E10+'Historische Daten'!$H10*'Historische Daten'!$F10","v":{"v":116769,"d":"116,769 €"}}]
[null,3,{"$f":"IFERROR(IF('Historische Daten'!$B11<>\"\",VLOOKUP('Historische Daten'!$B$4:$B$33,tblProdukte[[Produkt-ID]:[Name]],2,FALSE),\"\"),\"Unbekannte Produkt-ID\")","v":"Schirme"},"2012-02-01",34,{"v":34,"d":"34 €"},986,{"v":1069,"d":"1,069"},{"$f":"'Historische Daten'!$G11+'Historische Daten'!$H11","v":{"v":2055,"d":"2,055"}},{"$f":"'Historische Daten'!$G11*'Historische Daten'!$E11+'Historische Daten'!$H11*'Historische Daten'!$F11","v":{"v":69870,"d":"69,870 €"}}]
[null,4,{"$f":"IFERROR(IF('Historische Daten'!$B12<>\"\",VLOOKUP('Historische Daten'!$B$4:$B$33,tblProdukte[[Produkt-ID]:[Name]],2,FALSE),\"\"),\"Unbekannte Produkt-ID\")","v":"Trinkflaschen"},"2012-02-01",35,{"v":25,"d":"25 €"},848,{"v":1211,"d":"1,211"},{"$f":"'Historische Daten'!$G12+'Historische Daten'!$H12","v":{"v":2059,"d":"2,059"}},{"$f":"'Historische Daten'!$G12*'Historische Daten'!$E12+'Historische Daten'!$H12*'Historische Daten'!$F12","v":{"v":59955,"d":"59,955 €"}}]
[null,5,{"$f":"IFERROR(IF('Historische Daten'!$B13<>\"\",VLOOKUP('Historische Daten'!$B$4:$B$33,tblProdukte[[Produkt-ID]:[Name]],2,FALSE),\"\"),\"Unbekannte Produkt-ID\")","v":"Shorts"},"2012-02-01",41,{"v":38,"d":"38 €"},980,{"v":1330,"d":"1,330"},{"$f":"'Historische Daten'!$G13+'Historische Daten'!$H13","v":{"v":2310,"d":"2,310"}},{"$f":"'Historische Daten'!$G13*'Historische Daten'!$E13+'Historische Daten'!$H13*'Historische Daten'!$F13","v":{"v":90720,"d":"90,720 €"}}]
[null,1,{"$f":"IFERROR(IF('Historische Daten'!$B14<>\"\",VLOOKUP('Historische Daten'!$B$4:$B$33,tblProdukte[[Produkt-ID]:[Name]],2,FALSE),\"\"),\"Unbekannte Produkt-ID\")","v":"Hemden"},"2012-02-29",27,{"v":18,"d":"18 €"},533,{"v":1936,"d":"1,936"},{"$f":"'Historische Daten'!$G14+'Historische Daten'!$H14","v":{"v":2469,"d":"2,469"}},{"$f":"'Historische Daten'!$G14*'Historische Daten'!$E14+'Historische Daten'!$H14*'Historische Daten'!$F14","v":{"v":49239,"d":"49,239 €"}}]
[null,2,{"$f":"IFERROR(IF('Historische Daten'!$B15<>\"\",VLOOKUP('Historische Daten'!$B$4:$B$33,tblProdukte[[Produkt-ID]:[Name]],2,FALSE),\"\"),\"Unbekannte Produkt-ID\")","v":"Sandalen"},"2012-02-29",38,{"v":28,"d":"28 €"},952,{"v":1512,"d":"1,512"},{"$f":"'Historische Daten'!$G15+'Historische Daten'!$H15","v":{"v":2464,"d":"2,464"}},{"$f":"'Historische Daten'!$G15*'Historische Daten'!$E15+'Historische Daten'!$H15*'Historische Daten'!$F15","v":{"v":78512,"d":"78,512 €"}}]
[null,3,{"$f":"IFERROR(IF('Historische Daten'!$B16<>\"\",VLOOKUP('Historische Daten'!$B$4:$B$33,tblProdukte[[Produkt-ID]:[Name]],2,FALSE),\"\"),\"Unbekannte Produkt-ID\")","v":"Schirme"},"2012-02-29",92,{"v":92,"d":"92 €"},956,{"v":1266,"d":"1,266"},{"$f":"'Historische Daten'!$G16+'Historische Daten'!$H16","v":{"v":2222,"d":"2,222"}},{"$f":"'Historische Daten'!$G16*'Historische Daten'!$E16+'Historische Daten'!$H16*'Historische Daten'!$F16","v":{"v":204424,"d":"204,424 €"}}]
[null,4,{"$f":"IFERROR(IF('Historische Daten'!$B17<>\"\",VLOOKUP('Historische Daten'!$B$4:$B$33,tblProdukte[[Produkt-ID]:[Name]],2,FALSE),\"\"),\"Unbekannte Produkt-ID\")","v":"Trinkflaschen"},"2012-02-29",43,{"v":36,"d":"36 €"},952,{"v":1390,"d":"1,390"},{"$f":"'Historische Daten'!$G17+'Historische Daten'!$H17","v":{"v":2342,"d":"2,342"}},{"$f":"'Historische Daten'!$G17*'Historische Daten'!$E17+'Historische Daten'!$H17*'Historische Daten'!$F17","v":{"v":90976,"d":"90,976 €"}}]
[null,5,{"$f":"IFERROR(IF('Historische Daten'!$B18<>\"\",VLOOKUP('Historische Daten'!$B$4:$B$33,tblProdukte[[Produkt-ID]:[Name]],2,FALSE),\"\"),\"Unbekannte Produkt-ID\")","v":"Shorts"},"2012-02-29",98,{"v":73,"d":"73 €"},530,{"v":1452,"d":"1,452"},{"$f":"'Historische Daten'!$G18+'Historische Daten'!$H18","v":{"v":1982,"d":"1,982"}},{"$f":"'Historische Daten'!$G18*'Historische Daten'!$E18+'Historische Daten'!$H18*'Historische Daten'!$F18","v":{"v":157936,"d":"157,936 €"}}]
[null,1,{"$f":"IFERROR(IF('Historische Daten'!$B19<>\"\",VLOOKUP('Historische Daten'!$B$4:$B$33,tblProdukte[[Produkt-ID]:[Name]],2,FALSE),\"\"),\"Unbekannte Produkt-ID\")","v":"Hemden"},"2012-03-31",38,{"v":28,"d":"28 €"},973,{"v":1415,"d":"1,415"},{"$f":"'Historische Daten'!$G19+'Historische Daten'!$H19","v":{"v":2388,"d":"2,388"}},{"$f":"'Historische Daten'!$G19*'Historische Daten'!$E19+'Historische Daten'!$H19*'Historische Daten'!$F19","v":{"v":76594,"d":"76,594 €"}}]
[null,2,{"$f":"IFERROR(IF('Historische Daten'!$B20<>\"\",VLOOKUP('Historische Daten'!$B$4:$B$33,tblProdukte[[Produkt-ID]:[Name]],2,FALSE),\"\"),\"Unbekannte Produkt-ID\")","v":"Sandalen"},"2012-03-31",50,{"v":36,"d":"36 €"},672,{"v":1105,"d":"1,105"},{"$f":"'Historische Daten'!$G20+'Historische Daten'!$H20","v":{"v":1777,"d":"1,777"}},{"$f":"'Historische Daten'!$G20*'Historische Daten'!$E20+'Historische Daten'!$H20*'Historische Daten'!$F20","v":{"v":73380,"d":"73,380 €"}}]
[null,3,{"$f":"IFERROR(IF('Historische Daten'!$B21<>\"\",VLOOKUP('Historische Daten'!$B$4:$B$33,tblProdukte[[Produkt-ID]:[Name]],2,FALSE),\"\"),\"Unbekannte Produkt-ID\")","v":"Schirme"},"2012-03-31",24,{"v":23,"d":"23 €"},769,{"v":1629,"d":"1,629"},{"$f":"'Historische Daten'!$G21+'Historische Daten'!$H21","v":{"v":2398,"d":"2,398"}},{"$f":"'Historische Daten'!$G21*'Historische Daten'!$E21+'Historische Daten'!$H21*'Historische Daten'!$F21","v":{"v":55923,"d":"55,923 €"}}]
[null,4,{"$f":"IFERROR(IF('Historische Daten'!$B22<>\"\",VLOOKUP('Historische Daten'!$B$4:$B$33,tblProdukte[[Produkt-ID]:[Name]],2,FALSE),\"\"),\"Unbekannte Produkt-ID\")","v":"Trinkflaschen"},"2012-03-31",72,{"v":57,"d":"57 €"},985,{"v":1848,"d":"1,848"},{"$f":"'Historische Daten'!$G22+'Historische Daten'!$H22","v":{"v":2833,"d":"2,833"}},{"$f":"'Historische Daten'!$G22*'Historische Daten'!$E22+'Historische Daten'!$H22*'Historische Daten'!$F22","v":{"v":176256,"d":"176,256 €"}}]
[null,5,{"$f":"IFERROR(IF('Historische Daten'!$B23<>\"\",VLOOKUP('Historische Daten'!$B$4:$B$33,tblProdukte[[Produkt-ID]:[Name]],2,FALSE),\"\"),\"Unbekannte Produkt-ID\")","v":"Shorts"},"2012-03-31",85,{"v":43,"d":"43 €"},721,{"v":1426,"d":"1,426"},{"$f":"'Historische Daten'!$G23+'Historische Daten'!$H23","v":{"v":2147,"d":"2,147"}},{"$f":"'Historische Daten'!$G23*'Historische Daten'!$E23+'Historische Daten'!$H23*'Historische Daten'!$F23","v":{"v":122603,"d":"122,603 €"}}]
[null,1,{"$f":"IFERROR(IF('Historische Daten'!$B24<>\"\",VLOOKUP('Historische Daten'!$B$4:$B$33,tblProdukte[[Produkt-ID]:[Name]],2,FALSE),\"\"),\"Unbekannte Produkt-ID\")","v":"Hemden"},"2012-04-30",91,{"v":65,"d":"65 €"},603,{"v":1226,"d":"1,226"},{"$f":"'Historische Daten'!$G24+'Historische Daten'!$H24","v":{"v":1829,"d":"1,829"}},{"$f":"'Historische Daten'!$G24*'Historische Daten'!$E24+'Historische Daten'!$H24*'Historische Daten'!$F24","v":{"v":134563,"d":"134,563 €"}}]
[null,2,{"$f":"IFERROR(IF('Historische Daten'!$B25<>\"\",VLOOKUP('Historische Daten'!$B$4:$B$33,tblProdukte[[Produkt-ID]:[Name]],2,FALSE),\"\"),\"Unbekannte Produkt-ID\")","v":"Sandalen"},"2012-04-30",91,{"v":55,"d":"55 €"},892,{"v":1823,"d":"1,823"},{"$f":"'Historische Daten'!$G25+'Historische Daten'!$H25","v":{"v":2715,"d":"2,715"}},{"$f":"'Historische Daten'!$G25*'Historische Daten'!$E25+'Historische Daten'!$H25*'Historische Daten'!$F25","v":{"v":181437,"d":"181,437 €"}}]
[null,3,{"$f":"IFERROR(IF('Historische Daten'!$B26<>\"\",VLOOKUP('Historische Daten'!$B$4:$B$33,tblProdukte[[Produkt-ID]:[Name]],2,FALSE),\"\"),\"Unbekannte Produkt-ID\")","v":"Schirme"},"2012-04-30",42,{"v":42,"d":"42 €"},611,{"v":1181,"d":"1,181"},{"$f":"'Historische Daten'!$G26+'Historische Daten'!$H26","v":{"v":1792,"d":"1,792"}},{"$f":"'Historische Daten'!$G26*'Historische Daten'!$E26+'Historische Daten'!$H26*'Historische Daten'!$F26","v":{"v":75264,"d":"75,264 €"}}]
[null,4,{"$f":"IFERROR(IF('Historische Daten'!$B27<>\"\",VLOOKUP('Historische Daten'!$B$4:$B$33,tblProdukte[[Produkt-ID]:[Name]],2,FALSE),\"\"),\"Unbekannte Produkt-ID\")","v":"Trinkflaschen"},"2012-04-30",85,{"v":43,"d":"43 €"},530,{"v":1039,"d":"1,039"},{"$f":"'Historische Daten'!$G27+'Historische Daten'!$H27","v":{"v":1569,"d":"1,569"}},{"$f":"'Historische Daten'!$G27*'Historische Daten'!$E27+'Historische Daten'!$H27*'Historische Daten'!$F27","v":{"v":89727,"d":"89,727 €"}}]
[null,5,{"$f":"IFERROR(IF('Historische Daten'!$B28<>\"\",VLOOKUP('Historische Daten'!$B$4:$B$33,tblProdukte[[Produkt-ID]:[Name]],2,FALSE),\"\"),\"Unbekannte Produkt-ID\")","v":"Shorts"},"2012-04-30",82,{"v":71,"d":"71 €"},716,{"v":1249,"d":"1,249"},{"$f":"'Historische Daten'!$G28+'Historische Daten'!$H28","v":{"v":1965,"d":"1,965"}},{"$f":"'Historische Daten'!$G28*'Historische Daten'!$E28+'Historische Daten'!$H28*'Historische Daten'!$F28","v":{"v":147391,"d":"147,391 €"}}]
[null,1,{"$f":"IFERROR(IF('Historische Daten'!$B29<>\"\",VLOOKUP('Historische Daten'!$B$4:$B$33,tblProdukte[[Produkt-ID]:[Name]],2,FALSE),\"\"),\"Unbekannte Produkt-ID\")","v":"Hemden"},"2012-05-14",34,{"v":31,"d":"31 €"},850,{"v":1548,"d":"1,548"},{"$f":"'Historische Daten'!$G29+'Historische Daten'!$H29","v":{"v":2398,"d":"2,398"}},{"$f":"'Historische Daten'!$G29*'Historische Daten'!$E29+'Historische Daten'!$H29*'Historische Daten'!$F29","v":{"v":76888,"d":"76,888 €"}}]
[null,2,{"$f":"IFERROR(IF('Historische Daten'!$B30<>\"\",VLOOKUP('Historische Daten'!$B$4:$B$33,tblProdukte[[Produkt-ID]:[Name]],2,FALSE),\"\"),\"Unbekannte Produkt-ID\")","v":"Sandalen"},"2012-05-14",64,{"v":40,"d":"40 €"},876,{"v":1663,"d":"1,663"},{"$f":"'Historische Daten'!$G30+'Historische Daten'!$H30","v":{"v":2539,"d":"2,539"}},{"$f":"'Historische Daten'!$G30*'Historische Daten'!$E30+'Historische Daten'!$H30*'Historische Daten'!$F30","v":{"v":122584,"d":"122,584 €"}}]
[null,3,{"$f":"IFERROR(IF('Historische Daten'!$B31<>\"\",VLOOKUP('Historische Daten'!$B$4:$B$33,tblProdukte[[Produkt-ID]:[Name]],2,FALSE),\"\"),\"Unbekannte Produkt-ID\")","v":"Schirme"},"2012-05-14",33,{"v":30,"d":"30 €"},881,{"v":1149,"d":"1,149"},{"$f":"'Historische Daten'!$G31+'Historische Daten'!$H31","v":{"v":2030,"d":"2,030"}},{"$f":"'Historische Daten'!$G31*'Historische Daten'!$E31+'Historische Daten'!$H31*'Historische Daten'!$F31","v":{"v":63543,"d":"63,543 €"}}]
[null,4,{"$f":"IFERROR(IF('Historische Daten'!$B32<>\"\",VLOOKUP('Historische Daten'!$B$4:$B$33,tblProdukte[[Produkt-ID]:[Name]],2,FALSE),\"\"),\"Unbekannte Produkt-ID\")","v":"Trinkflaschen"},"2012-05-14",29,{"v":27,"d":"27 €"},802,{"v":1548,"d":"1,548"},{"$f":"'Historische Daten'!$G32+'Historische Daten'!$H32","v":{"v":2350,"d":"2,350"}},{"$f":"'Historische Daten'!$G32*'Historische Daten'!$E32+'Historische Daten'!$H32*'Historische Daten'!$F32","v":{"v":65054,"d":"65,054 €"}}]
[null,5,{"$f":"IFERROR(IF('Historische Daten'!$B33<>\"\",VLOOKUP('Historische Daten'!$B$4:$B$33,tblProdukte[[Produkt-ID]:[Name]],2,FALSE),\"\"),\"Unbekannte Produkt-ID\")","v":"Shorts"},"2013-12-11",24,{"v":15,"d":"15 €"},824,{"v":1994,"d":"1,994"},{"$f":"'Historische Daten'!$G33+'Historische Daten'!$H33","v":{"v":2818,"d":"2,818"}},{"$f":"'Historische Daten'!$G33*'Historische Daten'!$E33+'Historische Daten'!$H33*'Historische Daten'!$F33","v":{"v":49686,"d":"49,686 €"}}]

{"sheet":"Preisliste","index":2,"n_rows":18,"n_cols":6,"rows_kept":18,"merged":[[15,1,15,5]]}
[null,"Artikelpreisliste"]
[]
[null,"Adventure Works"]
[null,"Ahornstraße 23456"]
[null,"77503 Musterstadt"]
[null,"Telefon: (0123) 456-0100"]
[null,"Fax: (0123) 456-0101"]
[null,"www.adventure-works.com",{"$nulls":3},"Letzte Aktualisierung: 15.08.2013"]
[]
[null,"Produkt-ID","Name","Beschreibung","Verkaufspreis pro Einheit","Mengenpreis pro Einheit*"]
[null,1,"Hemden","Bleiben Sie den ganzen Sommer über cool – in unseren Hemden aus 100 % sanforisierter Baumwolle.",{"v":22,"d":"22 €"},{"v":15,"d":"15.00 €"}]
[null,2,"Sandalen","Tragen Sie unsere Sandalen mit Spezialgummisohlen, und laufen Sie damit blasenfrei auf glühend heißem Sand.",{"v":10,"d":"10 €"},{"v":6,"d":"6.00 €"}]
[null,3,"Schirme","Schützen Sie sich unter unserem extrabreiten Strandsonnenschirm vor der Sonne. Er lässt 96 % aller schädlichen UV-Strahlen nicht durch.",{"v":30,"d":"30 €"},{"v":20,"d":"20.00 €"}]
[null,4,"Trinkflaschen","Kühlen Sie sich innerlich mit perfekt temperiertem Wasser aus unserer isolierten Trinkflasche.",{"v":7,"d":"7 €"},{"v":5,"d":"5.00 €"}]
[null,5,"Shorts","Gehen Sie in unseren ultraschnell trocknenden Nylonshorts direkt aus dem Wasser zu Ihrem Auto.",{"v":15,"d":"15 €"},{"v":8,"d":"8.00 €"}]
[]
[{"$nulls":5},"Fragen Sie uns nach nicht aufgeführten Artikeln."]
[{"$nulls":5},"*Mengenpreise gelten für Mengen von mindestens 12 Einheiten."]

{"sheet":"Pivot Preispunkt","index":3,"n_rows":10,"n_cols":4,"rows_kept":10,"hidden":true,"merged":[[1,1,1,3]]}
[null,"PivotTable \"Preispunkt\""]
[null,"Dieses Arbeitsblatt sollte ausgeblendet bleiben. Änderungen an der nachstehenden PivotTable können zu falschen Daten im Artikelverkaufsbericht führen."]
[null,"Ausgewählter Artikel:",{"$f":"IF(LEN(B5),B5,\"None\")","v":"Sandalen"}]
[null,"Produktname","Verkaufspreis pro Einheit","Summe der Gesamtverkäufe (#)"]
[null,"Sandalen",{"v":38,"d":"38 €"},2464]
[null,null,{"v":50,"d":"50 €"},1777]
[null,null,{"v":64,"d":"64 €"},2539]
[null,null,{"v":70,"d":"70 €"},1787]
[null,null,{"v":83,"d":"83 €"},1758]
[null,null,{"v":91,"d":"91 €"},2715]

{"sheet":"Wiederhergestellt_Tabelle1","index":4,"n_rows":9,"n_cols":3,"rows_kept":9,"hidden":true,"merged":[[1,1,1,3]]}
[null,"PivotTable \"Verkaufstrend\""]
[null,"Dieses Arbeitsblatt sollte ausgeblendet bleiben. Änderungen an der nachstehenden PivotTable können zu falschen Daten im Artikelverkaufsbericht führen."]
[null,"Summe von Gesamtverkäufe (#)","Produktname"]
[null,"Preisdatum","Sandalen"]
[null,"Jan",1787]
[null,"Feb",4222]
[null,"Mrz",1777]
[null,"Apr",2715]
[null,"Mai",2539]